Cogmind - Beta 15 @@@ ROGUE MODE // 2025.08.24 @ 03:08:54 Player: Naughtyusername Result: Destroyed by G-67 Veteran with Plasma Rifle Performance ------------- Evolutions (7) 3500 Regions Visited (20) 4000 Robots Destroyed (414) 2070 Value Destroyed (18683) 18683 Prototype IDs (51) 1020 Alien Tech Used (1) 200 Bonus (9758) 9758 TOTAL SCORE: 39231 Bonus ------- Triggered High Security 500 High Alert Combat Kills 6985 Follower Combat Kills 3406 Network Hubs Disabled 400 Met Data Miner 300 Met Imprinter 300 Was Imprinted 300 Built Enhanced Grunts 300 A7 Reached Mainframe 300 Met R17 at Cetus 500 Friendly Fire -3533 Cogmind --------- Core Integrity 0/1300 Matter 300/300 Energy 99/100 System Corruption 17% Temperature Cool (12) Movement Core (50) Location -3/Research Parts ------- > --- POWER (3) -------- (None) > --- PROPULSION (6) --- (None) > --- UTILITY (10) ----- (None) > --- WEAPON (3) ------- (None) > --- INVENTORY (5) ---- Graphene Brace Advanced Point Defense System Field Laser Plasma Rifle Coil Gun Peak State ------------ > --- POWER ------------ Antimatter Reactor Quantum Reactor Quantum Reactor > --- PROPULSION ------- Centrium Heavy Treads Centrium Heavy Treads Centrium Heavy Treads > --- UTILITY ---------- Coolant Network High-capacity Storage Unit Advanced Signal Interpreter Improved Targeting Computer Tactical Coordination Suite Improved Weapon Cycler Centrium Medium Armor Plating Light Regenerative Plating Graphene Brace > --- WEAPON ----------- Heavy Wave Gun Advanced Plasma Cannon Neutron Cannon > --- INVENTORY -------- Zionite Heavy DM Reactor Advanced Heat Sink Experimental Cooling System Advanced Energy Well Advanced Energy Well Advanced Particle Charger Centrium Medium Armor Plating Graphene Brace Advanced Component Analysis Suite Wave Gun Wave Gun Variable Charge Gun Heavy Wave Gun Heavy Wave Gun Advanced Variable Charge Gun Heavy Phase Cannon Hypervelocity Coil Gun Hypervelocity Coil Gun Railgun Mass Driver [Rating: 173] Favorites ----------- Power Improved Deuterium Engine Engine Improved Deuterium Engine Power Core Light Nuclear Core Reactor Quantum Reactor Propulsion Carbon-fiber Leg Treads Centrium Heavy Treads Leg Carbon-fiber Leg Wheel Wheel Hover Unit Backup Propulsion I Utility High-capacity Storage Unit Device Coolant Network Storage High-capacity Storage Unit Processor Advanced Signal Interpreter Hackware Hacking Suite Protection Light Regenerative Plating Weapon Gatling Laser Energy Gun Gatling Laser Energy Cannon Heavy Neutron Cannon Ballistic Gun Railgun Ballistic Cannon Mass Driver Launcher Missile Launcher Build | -11 -10 -9 -8 -7 -7 -7 -7 -6 -6 -6 -6 -6 -5 -5 -5 -5 -5 -5 -4 -3 ------- Run | Yrd Mat Mat Mat Fac Low Low Dat Pro Fac Low Low Zio Pro Fac Ext Cet Arc Hub Fac Res Slots Evolved 14 | . . 2 2 2 . . . . 2 . . . . 2 . . . . 2 2 Power 2 | . . . 1 . . . . . . . . . . . . . . . . 1 Propulsion 3 | . . 1 . . . . . . 1 . . . . 1 . . . . . . Utility 8 | . . 1 1 2 . . . . . . . . . 1 . . . . 2 1 Weapon 1 | . . . . . . . . . 1 . . . . . . . . . . . Parts Attached 321 | 8 4 10 28 31 6 7 . 5 67 4 1 2 2 24 23 13 8 6 14 58 Power 51 | 1 . 1 5 3 2 2 . 1 11 1 . 1 1 4 3 2 . 1 1 11 Engine 17 | 1 . . 4 2 1 2 . 1 5 . . 1 . . . . . . . . Core 17 | . . 1 1 1 1 . . . 6 1 . . . 4 1 . . . . 1 Reactor 17 | . . . . . . . . . . . . . 1 . 2 2 . 1 1 10 Propulsion 93 | 2 . 2 7 7 1 2 . . 22 . . 1 . 7 15 4 . . . 23 Treads 6 | . . . . . . . . . 2 . . . . . . 3 . . . 1 Leg 74 | 2 . 2 7 7 1 2 . . 12 . . 1 . 4 14 1 . . . 21 Wheel 13 | . . . . . . . . . 8 . . . . 3 1 . . . . 1 Hover . | . . . . . . . . . . . . . . . . . . . . . Flight . | . . . . . . . . . . . . . . . . . . . . . Utility 99 | 3 3 4 8 12 1 2 . 3 16 2 1 . . 8 2 4 6 2 9 13 Device 43 | 2 . 2 3 5 1 . . 1 8 1 . . . 4 . 1 1 2 4 8 Storage 10 | 1 2 . . . . . . . 4 . . . . . . 1 . . . 2 Processor 12 | . . . 2 3 . 1 . 1 1 . . . . 1 . . . . 2 1 Hackware 9 | . . . . 2 . . . . . . . . . 1 . . 5 . 1 . Protection 25 | . 1 2 3 2 . 1 . 1 3 1 1 . . 2 2 2 . . 2 2 Artifact . | . . . . . . . . . . . . . . . . . . . . . Weapon 78 | 2 1 3 8 9 2 1 . 1 18 1 . . 1 5 3 3 2 3 4 11 Energy Gun 51 | 2 . 2 6 6 2 1 . . 9 1 . . 1 5 3 1 . 1 1 10 Energy Cannon 14 | . . 1 1 . . . . . 8 . . . . . . 1 . . 2 1 Ballistic Gun 5 | . . . . . . . . . . . . . . . . 1 2 2 . . Ballistic Cannon 3 | . . . 1 1 . . . . . . . . . . . . . . 1 . Launcher 5 | . 1 . . 2 . . . 1 1 . . . . . . . . . . . Special Weapon . | . . . . . . . . . . . . . . . . . . . . . Impact Weapon . | . . . . . . . . . . . . . . . . . . . . . Slashing Weapon . | . . . . . . . . . . . . . . . . . . . . . Piercing Weapon . | . . . . . . . . . . . . . . . . . . . . . Special Melee Weapon . | . . . . . . . . . . . . . . . . . . . . . Unidentified Prototypes 27 | . . 1 2 2 . 1 . . 4 . . . . 1 1 9 . 1 1 4 Corrupted Parts 9 | . . . . . . . . . . 1 . 1 1 . 1 2 . 3 . . System Corruption 38 | . . . . . . . . . . 3 . 7 3 . 6 10 . 9 . . Parts Lost 142 | . . 1 19 3 1 4 . 2 28 5 . . 1 12 12 3 1 . 1 49 Power 26 | . . 1 4 . 1 1 . . 5 2 . . . 1 1 . . . . 10 Propulsion 53 | . . . 6 1 . 2 . . 12 . . . . 6 6 3 . . . 17 Utility 34 | . . . 7 . . 1 . 2 6 3 . . . 2 1 . . . 1 11 Weapon 29 | . . . 2 2 . . . . 5 . . . 1 3 4 . 1 . . 11 Highest Loss Streak 18 | . . 1 6 1 1 2 . 2 7 3 . . 1 6 7 3 1 . 1 18 To Critical Strikes . | . . . . . . . . . . . . . . . . . . . . . Average Backups 15 | . 7 14 13 14 15 13 14 14 18 17 18 16 15 15 15 16 17 19 17 14 Power 1 | . 1 1 . 1 1 . 1 1 . . 1 1 1 2 2 2 2 2 2 1 Propulsion 1 | . . 2 2 1 2 . . . . 2 3 2 2 . . . . . . . Utility 6 | . 2 5 4 5 6 5 5 4 6 4 4 4 6 6 8 10 12 14 10 6 Weapon 6 | . 2 5 5 6 6 6 8 7 11 10 10 8 5 5 5 2 2 3 5 6 Tool/Special . | . . . . . . . . . . . . . . . . . . . . . Unused Backups 55 | . . 2 6 2 . . . 1 13 . 3 4 2 1 2 5 1 . 3 10 Power 9 | . . 1 1 1 . . . . 2 . . . . 1 2 1 . . . . Propulsion 3 | . . . . . . . . . . . 1 . 2 . . . . . . . Utility 15 | . . . 1 . . . . 1 5 . 1 1 . . . 2 . . 1 3 Weapon 28 | . . 1 4 1 . . . . 6 . 1 3 . . . 2 1 . 2 7 Tool/Special . | . . . . . . . . . . . . . . . . . . . . . Average Slot Usage (%) 92 | . 99 99 94 99 97 99 87 99 91 89 92 91 92 87 90 82 76 81 82 90 Engine 6 | . 14 6 14 14 13 12 14 14 5 7 6 6 6 2 . . . . . . Core 3 | . . 4 1 . 1 1 . . 5 4 6 5 6 6 8 . . . . 2 Reactor 2 | . . . . . . . . . . . . . . 1 1 10 11 11 10 9 Treads 1 | . . . . . . . . . . . . . . . . 7 16 16 14 2 Leg 22 | . 28 33 25 22 23 25 28 28 22 31 31 31 31 19 26 13 . . . 20 Wheel 1 | . . . . . . . . . 4 . . . . 7 5 . . . . . Device 14 | . 7 10 16 21 15 13 14 14 15 10 12 12 12 11 12 13 9 7 13 21 Storage 7 | . 14 11 8 7 7 7 7 7 7 6 6 6 6 5 5 7 11 11 5 8 Processor 4 | . . . . 8 7 7 7 10 4 6 6 6 6 7 5 3 . . . 4 Hackware 2 | . . . . 1 15 12 7 . . . . . . 1 . . 4 16 14 . Protection 6 | . 6 11 9 6 . 3 7 9 6 3 5 6 6 7 8 6 9 3 9 4 Energy Gun 11 | . 27 21 16 14 11 12 2 13 10 14 12 4 17 5 8 13 5 1 1 10 Energy Cannon 3 | . . . . . . . . . 6 3 5 6 . 9 5 2 . . 7 2 Peak Build Rating 173 | 7 8 18 32 47 47 47 48 48 98 97 90 91 95 102 111 156 157 140 158 173 Average Rating 77 | 5 7 16 24 44 44 46 39 47 65 87 89 87 90 94 99 128 149 137 149 154 On Entrance 73 | . 7 8 18 29 45 46 47 47 48 97 86 90 91 95 98 108 156 134 139 150 Naked Turns 21 | . . . 12 . . . . . . . . . . . . . . . . 9 Heaviest Build 159 | 13 30 39 49 59 52 58 58 64 102 102 83 92 88 112 125 119 120 106 119 159 Greatest Support 240 | 20 20 30 30 52 44 57 57 57 88 88 88 93 93 93 113 240 240 240 240 240 Greatest Overweight (x) 11 | 1 1 1 3 1 1 1 1 1 8 1 . . . 10 4 1 . . 1 11 Average Overweight (x) . | . . 1 . . . . . . 1 . . . . 3 . . . . . . Largest Inventory Capacity 25 | 8 15 15 15 15 15 15 15 15 25 20 20 20 20 20 20 20 20 20 20 20 Average Capacity 17 | 7 10 15 14 15 15 15 15 15 20 20 20 20 20 20 20 20 20 20 20 16 Most Carried 20 | 2 14 15 15 15 15 15 15 15 20 20 20 20 20 20 20 20 20 20 20 20 Average Carried 16 | . 7 14 13 14 15 13 14 14 18 18 19 19 19 18 19 19 19 20 18 14 Final Capacity 20 | 8 15 15 15 15 15 15 15 15 20 20 20 20 20 20 20 20 20 20 20 5 Final Carried 20 | 2 14 15 15 15 15 14 14 13 19 20 20 20 20 20 20 20 20 20 16 5 Class Distribution -------------------- 20% | Scavenger-Tank 18% | Mutant 17% | Scavenger-Gunner 13% | Scavenger-Mutant 11% | Scavenger-Skirmisher 9% | Hacker-Mutant Dominant Class ---------------- Mutant | -10/Materials Mutant | -9/Materials Scavenger-Mutant | -8/Materials Mutant | -7/Factory Hacker-Mutant | -7/Lower Caves Hacker-Mutant | -7/Lower Caves Mutant | -7/Data Miner Scavenger-Mutant | -6/Proximity Caves Scavenger-Tank | -6/Factory Scavenger-Gunner | -6/Lower Caves Scavenger-Gunner | -6/Lower Caves Scavenger-Gunner | -6/Zion Scavenger-Gunner | -5/Proximity Caves Scavenger-Skirmisher | -5/Factory Commander-Gunner | -5/Extension Commander-Tank | -5/Cetus Scavenger-Tank | -5/Archives Scavenger-Tank | -5/Hub_04(d) Scavenger-Tank | -4/Factory Scavenger-Gunner | -3/Research Resources | -11 -10 -9 -8 -7 -7 -7 -7 -6 -6 -6 -6 -6 -5 -5 -5 -5 -5 -5 -4 -3 ----------- Run | Yrd Mat Mat Mat Fac Low Low Dat Pro Fac Low Low Zio Pro Fac Ext Cet Arc Hub Fac Res Matter Collected 7188 | 280 105 222 445 527 309 339 . 337 1115 158 72 89 85 259 390 203 512 426 452 863 Remotely 76 | 76 . . . . . . . . . . . . . . . . . . . . Salvage Created 20808 | 139 359 492 2073 1123 273 179 . 480 2680 621 . . 320 898 1242 149 523 954 1943 6360 Parts 838 | 12 19 31 89 44 4 11 . 14 76 20 . . 13 45 56 5 22 47 93 237 Haulers Intercepted 23 | . 2 3 4 4 . . . . 4 . . . . 2 1 . . 1 . 2 Recyclers Shooed 10 | . . . 3 1 . . . . . . . . . 2 1 . . . 1 2 Parts Field Recycled . | . . . . . . . . . . . . . . . . . . . . . Retrieved Matter . | . . . . . . . . . . . . . . . . . . . . . Parts Self-Destructed 48 | . . . . . 10 2 . 16 . 8 . . 12 . . . . . . . Prevented 27 | . . . . . . . . . . 11 . . 16 . . . . . . . Kills | -11 -10 -9 -8 -7 -7 -7 -7 -6 -6 -6 -6 -6 -5 -5 -5 -5 -5 -5 -4 -3 ------- Run | Yrd Mat Mat Mat Fac Low Low Dat Pro Fac Low Low Zio Pro Fac Ext Cet Arc Hub Fac Res Combat Hostiles Destroyed 299 | . 9 13 29 17 2 10 . 12 49 10 . . 6 7 15 3 1 5 26 85 Guns 173 | . 6 9 26 12 1 1 . 7 16 6 . . 4 . 3 2 1 5 5 69 Cannons 55 | . . . 1 . . . . . 12 2 . . . 6 8 . . . 19 7 AOE 42 | . 3 4 1 2 . 9 . 5 16 . . . 1 . 1 . . . . . Classes Destroyed 26 | 2 5 2 1 1 . 1 . 2 5 1 . . . 1 3 . . . . 2 Worker 29 | . 1 . 5 3 . . . . 7 . . . . 2 . . . 7 1 3 Builder 14 | . . 1 3 1 . . . . 3 . . . . 1 1 . . 2 1 1 Tunneler 6 | 3 . . . . . . . . 1 . . . . 1 . . . . . 1 Hauler 23 | . 2 3 4 4 . . . . 4 . . . . 2 1 . . 1 . 2 Recycler 17 | 1 . . 5 2 . . . . 2 . . . . 3 1 . . 2 . 1 Mechanic 2 | . . . . . . . . . 1 . . . . . . . . . 1 . Operator 10 | . . . . . . . . . . . . . . 2 1 . 7 . . . Drone 1 | . . . . . . . . 1 . . . . . . . . . . . . Watcher 7 | . 1 . . 1 . . . . 2 . . . . . . . . . . 3 Swarmer 48 | . 6 3 3 3 . 5 . 3 7 1 . . 2 . . . . 2 . 13 Saboteur 1 | . . . . . . . . . 1 . . . . . . . . . . . Grunt 119 | . 3 6 21 6 1 . . 4 24 4 . . 2 . 7 . . 1 7 33 Brawler 7 | . . . . . . . . . 4 . . . . . . . . . . 3 Duelist 8 | . . . . . . . . 1 2 . . . . . 1 . . . 1 3 Protector 2 | . . . . . . . . . 1 . . . . . . . . . . 1 Sentry 35 | . . 4 3 3 . . . 1 3 1 . . 1 2 2 . 1 3 7 4 Demolisher 2 | . . . . . . . . . . . . . . . 2 . . . . . Specialist 2 | . . . . . . . . . . . . . . . 1 . . . . 1 Hunter 26 | . . . 2 . . 1 . 2 1 . . . . 2 . . . . 6 12 Programmer 35 | . . . . 5 1 . . . 5 . . . 1 3 2 . . . 5 13 Heavy 1 | . . . . . . . . . 1 . . . . . . . . . . . Behemoth 1 | . . . . . . . . . . . . . . . . . . . . 1 Cetus Guard 3 | . . . . . . . . . . . . . . . . 3 . . . . Enhanced Grunt 2 | . . . . . . . . . . . . . . . . . 1 1 . . Striker 1 | . . . . . . . . . . . . . . . . . . . . 1 Z-Heavy 1 | . . . . . . . . . . . . . . . 1 . . . . . Thug 5 | . . . . . . 3 . . . 1 . . . . . . 1 . . . Guerrilla 1 | . . . . . . . . . . . . . . . . . 1 . . . Fireman 3 | . . . . . . . . . . 3 . . . . . . . . . . Mutant 1 | . . . . . . 1 . . . . . . . . . . . . . . Best Kill Streak 18 | 4 3 5 6 4 1 4 . 6 10 5 . . 2 4 7 2 4 12 7 18 Combat Bots Only 16 | . 3 4 6 4 1 4 . 6 9 5 . . 2 2 6 2 1 3 5 16 Max Kills in Single Turn 12 | 1 3 1 2 2 1 2 . 2 4 1 . . 1 2 2 1 1 12 2 2 Gunslinging 1 | . . . . . . . . . . . . . . . . . . . . 1 Exploded 4 | . 3 1 1 1 . 2 . 2 4 . . . 1 . 1 . . . . . Melee . | . . . . . . . . . . . . . . . . . . . . . Uniques/NPCs Destroyed 1 | . . . . . . . . . . . . . . . 1 . . . . . 99-TNT (-5/Extension) Combat | -11 -10 -9 -8 -7 -7 -7 -7 -6 -6 -6 -6 -6 -5 -5 -5 -5 -5 -5 -4 -3 -------- Run | Yrd Mat Mat Mat Fac Low Low Dat Pro Fac Low Low Zio Pro Fac Ext Cet Arc Hub Fac Res Hostile Shots Fired 2389 | . 35 60 207 204 20 29 . 58 335 61 . . 32 102 155 32 8 36 238 777 Missed 726 | . 11 28 69 67 7 10 . 26 101 13 . . 11 22 37 10 . 12 74 228 Hits 1663 | . 24 32 138 137 13 19 . 32 234 48 . . 21 80 118 22 8 24 164 549 Melee 32 | . . . . . . . . 2 . . . . . . . . . . 4 26 Projectile 1631 | . 24 32 138 137 13 19 . 30 234 48 . . 21 80 118 22 8 24 160 523 AOE 3 | . . . . . . . . . . . . . . . 3 . . . . . Critical Strikes 95 | . . 1 6 2 2 3 . 3 7 5 . . 2 5 9 5 . 4 3 38 Actively Blocked 54 | . . . . . . . . . . 1 . . . 4 6 5 . . 2 36 Part Disruptions 6 | . . . . 1 . . . . . 4 . . . . . . . . 1 . Actively Blocked 2 | . . . . . . . . . . 2 . . . . . . . . . . Damage Taken 28664 | . 258 462 2084 1492 244 469 . 522 3962 677 . . 386 1573 2580 541 240 615 3475 9084 Core 3044 | . 92 28 396 147 46 . . 67 419 33 . . 73 135 137 47 . . 109 1315 Absorbed by Shields 2379 | . . . . . . . . . . . . . . . 30 84 . . . 2265 Reduced by Siege Mode 153 | . . . . . . . . . . . . . . . . . . . 153 . Redirected to Shielding 128 | . . . . . . . . . . 103 . . 25 . . . . . . . Ignored by Resistances 132 | . . . . . . . . . . . . . . . 132 . . . . . Regen/Repaired (Parts) 1815 | . . . . 22 . . . . 60 . . . . 155 197 22 22 25 904 408 Core Remaining (%) 67 | 100 63 93 28 . . . . 62 . . . . 38 . . . . 68 90 . Volleys Fired 1222 | 7 34 42 135 78 13 17 . 24 174 36 31 1 19 62 95 39 40 22 81 272 Largest 3 | 2 2 2 2 2 2 2 . 2 3 3 1 1 3 3 3 3 3 3 3 3 Hottest 330 | 100 100 126 126 160 160 160 . 160 330 330 110 110 225 330 330 225 245 115 286 276 Shots Fired 2688 | 14 68 75 244 143 25 21 . 43 366 93 30 1 49 129 225 55 91 63 186 767 Gun 2002 | 14 66 70 222 133 23 7 . 33 161 66 . . 48 44 167 32 87 63 59 707 Cannon 634 | . . . 20 8 . . . . 191 27 30 1 . 85 58 23 4 . 127 60 Launcher 52 | . 2 5 2 2 2 14 . 10 14 . . . 1 . . . . . . . Special . | . . . . . . . . . . . . . . . . . . . . . Kinetic 195 | . . . 15 8 . . . . . . . . . . . . 68 62 42 . Thermal 2042 | 14 66 70 171 133 23 7 . 33 309 27 30 1 3 85 80 55 23 1 144 767 Explosive 52 | . 2 5 2 2 2 14 . 10 14 . . . 1 . . . . . . . Electromagnetic 399 | . . . 56 . . . . . 43 66 . . 45 44 145 . . . . . Robot Hit Streak 45 | 2 6 6 18 19 18 7 . 18 15 13 . . 11 5 14 15 18 10 15 45 Robot Miss Streak 8 | 1 3 4 5 5 2 2 . 8 5 2 . . 3 4 4 2 6 5 2 3 Penetration Max 2 | . . . . . . . . . . . . . . . . . 1 2 1 . Secondary Targets 29 | . . . 4 1 . . . 1 2 1 . . 3 . . 1 . . 1 15 Max Gunslinging Chain 1 | . . . 1 1 . . . 1 1 1 . . 1 . . 1 . . 1 1 Shots Hit Robots 1713 | 8 36 43 176 102 12 12 . 30 207 71 . . 32 57 147 31 41 18 131 559 Core Hits 919 | 5 20 21 100 54 8 24 . 35 153 28 . . 27 24 61 12 29 37 62 219 Critical Kills 17 | . . . . . . . . . 1 . . . . . . . . 2 5 9 Critical Parts Destroyed 13 | . . . . . . . . . . . . . . . . . 1 3 1 8 Critical Strikes 85 | 1 5 1 8 7 . . . . 2 . . . . . . 1 1 6 7 46 Burn 53 | 1 5 1 8 7 . . . . 1 . . . . . . 1 . . 1 28 Meltdown 6 | . . . . . . . . . 1 . . . . . . . . . 2 3 Destroy 26 | . . . . . . . . . . . . . . . . . 1 6 4 15 Melee Attacks . | . . . . . . . . . . . . . . . . . . . . . Impact . | . . . . . . . . . . . . . . . . . . . . . Slashing . | . . . . . . . . . . . . . . . . . . . . . Piercing . | . . . . . . . . . . . . . . . . . . . . . Sneak Attacks . | . . . . . . . . . . . . . . . . . . . . . Combat Hostiles . | . . . . . . . . . . . . . . . . . . . . . Follow-up Attacks . | . . . . . . . . . . . . . . . . . . . . . Damage Inflicted 55503 | 100 597 1040 2954 2594 265 1575 . 1291 9263 1453 . . 1225 2315 3870 792 1573 2056 4303 18237 Guns 33144 | 100 477 754 2606 2206 263 105 . 649 2884 680 . . 645 320 1414 562 1456 485 752 16786 Cannons 11563 | . . . 90 62 . . . . 2561 616 . . . 1581 1707 230 117 . 3235 1364 Explosions 10684 | . 110 286 252 326 2 1470 . 642 3807 157 . . 580 414 721 . . 1571 316 30 Melee . | . . . . . . . . . . . . . . . . . . . . . Ramming 112 | . 10 . 6 . . . . . 11 . . . . . 28 . . . . 57 Kinetic 2138 | . . . . 62 . . . . . . . . . . . . 1180 450 446 . Thermal 41756 | 100 477 754 2004 2206 263 105 . 649 6834 773 . . 346 1636 2668 792 393 35 3541 18180 Explosive 5792 | . 110 286 171 326 2 1470 . 642 1915 . . . 416 359 . . . . 95 . Electromagnetic 5705 | . . . 773 . . . . . 503 680 . . 463 320 1174 . . 1571 221 . Impact . | . . . . . . . . . . . . . . . . . . . . . Slashing . | . . . . . . . . . . . . . . . . . . . . . Piercing . | . . . . . . . . . . . . . . . . . . . . . Highest Corruption 36 | . 2 . . 4 4 4 4 4 14 11 11 11 4 3 14 24 24 36 2 17 Average Corruption 6 | . 2 . . 2 4 4 4 4 4 9 11 10 1 3 5 20 24 25 1 10 Corruption Purged 10 | . . . . . . . . . 10 . . . . . . . . . . . Corruption Blocked . | . . . . . . . . . . . . . . . . . . . . . Effects 430 | . 10 . . 32 33 11 1 14 89 24 19 3 3 12 30 32 28 18 5 66 Message Errors 94 | . 2 . . 8 8 2 . 1 18 9 5 1 1 2 4 7 8 5 . 13 Matter Fused 106 | . 3 . . 7 10 2 . 5 18 4 8 2 1 2 10 8 9 3 4 10 Heat Flow Errors 39 | . . . . 2 4 1 . 1 12 2 1 . . 1 3 4 2 1 1 4 Energy Discharges 42 | . . . . 4 2 2 . 3 7 2 2 . . 2 2 4 1 2 . 9 Parts Rejected 6 | . . . . . . . . . 2 1 . . . . 1 . . 1 . 1 Parts Fused 9 | . 1 . . . 2 . . . 1 . . . . 1 2 . 1 . . 1 Data Loss (minor) 42 | . 2 . . 3 3 2 1 1 11 . . . . 3 3 5 1 1 . 6 Data Loss (major) 18 | . . . . 2 1 1 . 2 3 1 2 . 1 . 1 . . 2 . 2 Misfires 23 | . 2 . . 3 1 1 . 1 4 . . . . 1 2 1 2 . . 5 Alerts 13 | . . . . . 2 . . . 5 . . . . . 2 . . 1 . 3 Misdirections 1 | . . . . . . . . . 1 . . . . . . . . . . . Weapon Failures 37 | . . . . 3 . . . . 7 5 1 . . . . 3 4 2 . 12 Overload Shots 17 | . . . . 3 . 1 . . . . . . 3 . . 2 . . . 8 Effects 1 | . . . . . . . . . . . . . . . . . . . . 1 Short Circuit 1 | . . . . . . . . . . . . . . . . . . . . 1 Overflow Damage 961 | . . 26 2 12 . 109 . 21 475 47 . . . 135 77 . . 9 26 22 Projectiles 284 | . . . 2 . . . . . 69 47 . . . 82 48 . . . 14 22 Explosions 677 | . . 26 . 12 . 109 . 21 406 . . . . 53 29 . . 9 12 . Melee . | . . . . . . . . . . . . . . . . . . . . . Knockbacks . | . . . . . . . . . . . . . . . . . . . . . Impact . | . . . . . . . . . . . . . . . . . . . . . Kinetic . | . . . . . . . . . . . . . . . . . . . . . Secondary . | . . . . . . . . . . . . . . . . . . . . . Self-Inflicted Damage 811 | . 12 43 32 . 42 91 . 22 172 . . . . . 164 . . 95 133 5 Shots 21 | . 1 2 1 . 1 3 . 1 5 . . . . . 4 . . 1 2 . Rammed 2 | . . . . . . . . . . . . . . . . . . . . 2 Targets Rammed 19 | . 1 . 8 . . . . . 2 . . . . . 2 . . . . 6 Kicked 17 | . 1 . 8 . . . . . 2 . . . . . 2 . . . . 4 Crushed . | . . . . . . . . . . . . . . . . . . . . . Highest Temperature 516 | 195 384 354 213 224 149 82 . 214 344 154 156 . 224 324 260 190 187 317 516 464 Average Temperature 89 | 77 106 99 54 119 34 28 . 55 83 53 99 . 98 84 69 63 53 104 102 104 Received Heat Transfer 6519 | . 87 156 1089 384 153 132 . 117 1105 782 . . 120 63 591 27 45 39 363 1266 Effects 14 | . . . . 1 . . . . 3 . . . . 1 . . . . 2 7 Shutdowns 5 | . . . . . . . . . 2 . . . . . . . . . 1 2 Energy Bleed 3 | . . . . 1 . . . . 1 . . . . . . . . . . 1 Interference 4 | . . . . . . . . . . . . . . 1 . . . . . 3 Short Circuit 2 | . . . . . . . . . . . . . . . . . . . 1 1 Siege Activations 4 | . . . . . . . . . . . . . . . . . . . 4 . Total Turns 80 | . . . . . . . . . . . . . . . . . . . 80 . Longest Duration 25 | . . . . . . . . . . . . . . . . . . . 25 . Martial Activations . | . . . . . . . . . . . . . . . . . . . . . Shielding Activations . | . . . . . . . . . . . . . . . . . . . . . Robots Disrupted 17 | . . . . . . . . . 3 2 . . 4 1 7 . . . . . Combat Hostiles 17 | . . . . . . . . . 3 2 . . 4 1 7 . . . . . Robots Corrupted 10 | . . . . . . . . . 1 2 . . 1 1 4 . . 1 . . Combat Hostiles 7 | . . . . . . . . . . 2 . . 1 1 3 . . . . . Parts Fried 33 | . . . 2 . . . . . 3 5 . . 2 2 9 . . 10 . . Impact Corruptions . | . . . . . . . . . . . . . . . . . . . . . Robots Melted 25 | . 1 1 1 3 1 . . . 6 . . . . . . 1 . . 2 9 Combat Hostiles 22 | . . . 1 3 1 . . . 5 . . . . . . 1 . . 2 9 Parts Melted 170 | . 8 . 13 17 2 . . 2 25 . . . 4 . . 3 . . 20 76 Heat Transferred 53616 | 370 1776 1702 5798 4904 561 225 . 1450 8938 150 . . 250 50 752 1024 407 37 3968 21254 Parts Sabotaged 2 | . . . . . . . . . . . . . . . . . . . . 2 Parts Stolen . | . . . . . . . . . . . . . . . . . . . . . Parts Stripped . | . . . . . . . . . . . . . . . . . . . . . Power Chain Reactions 17 | . . . 2 . . . . . 2 2 . . 1 1 7 . . . 1 1 Alert | -11 -10 -9 -8 -7 -7 -7 -7 -6 -6 -6 -6 -6 -5 -5 -5 -5 -5 -5 -4 -3 ------- Run | Yrd Mat Mat Mat Fac Low Low Dat Pro Fac Low Low Zio Pro Fac Ext Cet Arc Hub Fac Res Maximum Alert Level 5 | . . . 1 1 . . . . 3 . . . . 5 5 4 2 3 4 5 Low Security (%) 42 | 100 100 100 72 84 . . . . 40 . . . . 54 . . . 38 . . Level 1 8 | . . . 27 15 . . . . 8 . . . . 12 . . . 17 . . Level 2 11 | . . . . . . . . . 10 . . . . 4 . . 100 . 51 19 Level 3 17 | . . . . . . . . . 40 . . . . 7 11 16 . 44 29 37 Level 4 14 | . . . . . . . . . . . . . . 17 62 83 . . 19 21 Level 5 3 | . . . . . . . . . . . . . . 2 26 . . . . 7 High Security 1 | . . . . . . . . . . . . . . . . . . . . 13 Max Security . | . . . . . . . . . . . . . . . . . . . . . Peak Influence 2223 | 10 115 176 334 251 . . . . 1066 . . . . 1723 2050 1226 659 1069 1222 2223 Initial 1145 | . . 12 63 137 . . . . 2 . . . . 144 842 1145 450 186 522 633 Average 572 | 1 52 112 124 94 . . . . 487 . . . . 452 1392 1143 597 547 786 1140 Influence Increases 15809 | 20 318 426 942 710 225 224 . 348 2038 150 15 . 533 2121 2090 421 373 1142 1110 2603 Destroy 0b10 Robot/C 7360 | . 180 260 580 340 40 180 . 260 980 120 . . 380 480 920 160 80 200 520 1680 Destroy 0b10 Robot/NC 740 | 20 20 20 85 55 10 . . 20 105 5 . . 5 125 85 10 35 65 15 60 Destroy Leader 1396 | . 36 86 138 110 10 30 . 30 210 10 . . 30 128 86 . . 42 130 320 Allied During Kill 1465 | . . . . . . 14 . 23 2 . . . 118 178 608 170 115 237 . . Successful Hack 304 | . 20 14 56 107 . . . . 39 . . . . 26 . . . . 18 24 Disable Machine 1530 | . 15 30 30 60 . . . . 300 . . . . 585 45 15 105 135 195 15 Anti-Garrison Action 150 | . . . . . . . . . 150 . . . . . . . . . . . Destroy Structure 1964 | . 17 16 23 23 . . . . 237 . . . . 554 286 66 38 418 142 144 Partial Spotted 45 | . . . 15 . . . . . . . . . . . 15 . . . 15 . Lose Combat Pursuer 855 | . 30 . 15 15 165 . . 15 15 15 15 . . 45 45 . . 45 75 360 Influence Decreases 13646 | 20 288 304 790 1014 180 269 . 343 981 706 359 162 304 631 1762 1342 964 609 972 1646 Entered New Map 4947 | . . 18 89 167 . 9 . . 3 394 97 162 . 85 877 902 676 349 546 573 Time Decay 6391 | 20 288 276 550 600 170 200 . 283 528 262 262 . 214 466 565 310 238 160 416 583 Lost Part 1341 | . . 10 151 30 10 40 . 20 280 50 . . 10 80 120 30 10 . 10 490 Lost Ally 600 | . . . . . . 20 . 40 20 . . . 80 . 200 100 40 100 . . Purge Threat 367 | . . . . 217 . . . . 150 . . . . . . . . . . . Squads Dispatched 97 | . 4 3 8 8 . . . . 20 . . . 1 6 7 . . 4 9 27 Investigation 17 | . 2 1 3 2 . . . . 4 . . . . 1 1 . . . 1 2 Extermination 20 | . . . . 4 . . . . 7 . . . . 2 . . . 1 2 4 Reinforcement 25 | . 2 2 4 2 . . . . 5 . . . . 3 2 . . 2 1 2 Assault 26 | . . . . . . . . . 4 . . . 1 . 4 . . 1 2 14 Garrison 9 | . . . 1 . . . . . . . . . . . . . . . 3 5 Intercept . | . . . . . . . . . . . . . . . . . . . . . Searches Triggered . | . . . . . . . . . . . . . . . . . . . . . Data Miner Redirects 12 | . . . . . . . . . 2 . . . . 1 4 . . 1 . 4 Construction Impeded 10 | . . . 3 1 . . . . 1 . . . . 1 2 . . 1 . 1 Haulers Reinforced 5 | . . . . . . . . . 1 . . . . 2 . . . . 1 1 Active Scanning Responses . | . . . . . . . . . . . . . . . . . . . . . Cargo Convoy Interrupts 2 | . . . . . . . . . 1 . . . . . . . . . . 1 Stealth | -11 -10 -9 -8 -7 -7 -7 -7 -6 -6 -6 -6 -6 -5 -5 -5 -5 -5 -5 -4 -3 --------- Run | Yrd Mat Mat Mat Fac Low Low Dat Pro Fac Low Low Zio Pro Fac Ext Cet Arc Hub Fac Res Distress Signals 30 | . 3 . 6 2 . . . . 1 . . . . 2 3 2 . 1 1 9 Communications Jammed . | . . . . . . . . . . . . . . . . . . . . . Distress Signals . | . . . . . . . . . . . . . . . . . . . . . Times Spotted 600 | . 22 21 55 28 12 14 . 14 65 11 1 . 19 22 59 9 18 11 40 179 Peak Tracking Total 30 | . 4 5 5 6 7 5 . 3 8 5 3 . 8 5 10 5 2 6 8 30 Tactical Retreats 34 | . 2 . 1 1 4 . . 1 1 1 1 . . 2 3 . . 3 3 11 Traps | -11 -10 -9 -8 -7 -7 -7 -7 -6 -6 -6 -6 -6 -5 -5 -5 -5 -5 -5 -4 -3 ------- Run | Yrd Mat Mat Mat Fac Low Low Dat Pro Fac Low Low Zio Pro Fac Ext Cet Arc Hub Fac Res Traps Triggered 16 | . 2 . 2 3 . . . . 7 . . . . . 1 . . . 1 . Indirectly 1 | . . . . . . . . . . . . . . . . . . . 1 . Trap Hack Attempts . | . . . . . . . . . . . . . . . . . . . . . Triggered . | . . . . . . . . . . . . . . . . . . . . . Disarmed . | . . . . . . . . . . . . . . . . . . . . . Reprogrammed . | . . . . . . . . . . . . . . . . . . . . . Reused . | . . . . . . . . . . . . . . . . . . . . . Traps Extracted . | . . . . . . . . . . . . . . . . . . . . . Installed . | . . . . . . . . . . . . . . . . . . . . . Triggered . | . . . . . . . . . . . . . . . . . . . . . Machines | -11 -10 -9 -8 -7 -7 -7 -7 -6 -6 -6 -6 -6 -5 -5 -5 -5 -5 -5 -4 -3 ---------- Run | Yrd Mat Mat Mat Fac Low Low Dat Pro Fac Low Low Zio Pro Fac Ext Cet Arc Hub Fac Res Machines Disabled 111 | . 1 2 2 4 1 . . . 21 . . . 1 39 9 1 7 9 13 1 Max in Single Turn 10 | . 1 1 1 3 1 . . . 5 . . . 1 10 2 1 1 8 9 1 Garrison Access 2 | . . . . . . . . . 1 . . . . 1 . . . . . . Network Hub 2 | . . . . . . . . . . . . . . . . . . 2 . . Machines Repaired . | . . . . . . . . . . . . . . . . . . . . . Machines Dismantled . | . . . . . . . . . . . . . . . . . . . . . Machines Sabotaged . | . . . . . . . . . . . . . . . . . . . . . Overloaded Fab Kills . | . . . . . . . . . . . . . . . . . . . . . Hacking | -11 -10 -9 -8 -7 -7 -7 -7 -6 -6 -6 -6 -6 -5 -5 -5 -5 -5 -5 -4 -3 --------- Run | Yrd Mat Mat Mat Fac Low Low Dat Pro Fac Low Low Zio Pro Fac Ext Cet Arc Hub Fac Res Machines Accessed 69 | . 8 3 8 18 3 . 4 . 10 . 1 1 . 4 1 1 . . 3 4 Terminals 33 | . 6 3 6 12 . . . . 5 . . . . . . 1 . . . . Fabricators 4 | . . . . 2 . . . . . . . . . 1 . . . . 1 . Repair Stations 8 | . . . 1 1 . . . . 2 . . . . . . . . . 1 3 Recycling Units 9 | . 2 . 1 2 . . . . 1 . . . . 2 1 . . . . . Scanalyzers 2 | . . . . 1 . . . . 1 . . . . . . . . . . . Garrison Access 4 | . . . . . . . . . 1 . . . . 1 . . . . 1 1 Total Hacks 221 | . 24 10 29 61 5 . 31 . 21 . 1 6 . 9 1 3 . . 13 7 Successful 133 | . 13 4 12 33 5 . 31 . 10 . 1 6 . 6 1 . . . 8 3 Failed 88 | . 11 6 17 28 . . . . 11 . . . . 3 . 3 . . 5 4 Catastrophic 21 | . 1 . 5 4 . . . . 3 . . . . 3 . 1 . . 1 3 Database Lockouts . | . . . . . . . . . . . . . . . . . . . . . Manual 161 | . 20 9 9 35 . . . . 9 . . . . 13 25 2 . 9 16 14 Terminals 118 | . 20 10 25 47 . . . . 13 . . . . . . 3 . . . . Fabricators 14 | . . . . 5 . . . . . . . . . 4 . . . . 5 . Repair Stations 18 | . . . 2 2 . . . . 2 . . . . . . . . . 6 6 Recycling Units 17 | . 4 . 2 5 . . . . 1 . . . . 4 1 . . . . . Scanalyzers 5 | . . . . 2 . . . . 3 . . . . . . . . . . . Garrison Access 6 | . . . . . . . . . 2 . . . . 1 . . . . 2 1 Terminal Hacks 67 | . 2 1 6 10 5 . 31 . 5 . 1 6 . . . . . . . . Record 14 | . . . . . 3 . 11 . . . . . . . . . . . . . Part Schematic 17 | . . . . . . . 10 . 1 . . 6 . . . . . . . . Robot Schematic 7 | . . . . . . . 7 . . . . . . . . . . . . . Robot Analysis 1 | . . . . 1 . . . . . . . . . . . . . . . . Prototype ID Bank 6 | . 1 1 1 . . . 3 . . . . . . . . . . . . . Open Door 3 | . . . . . 2 . . . . . 1 . . . . . . . . . Level Access Points 1 | . . . . 1 . . . . . . . . . . . . . . . . Branch Access Points 3 | . . . . 2 . . . . 1 . . . . . . . . . . . Machine Index 1 | . . . 1 . . . . . . . . . . . . . . . . . Terminal Index 3 | . 1 . 1 1 . . . . . . . . . . . . . . . . Alert Level 5 | . . . 1 2 . . . . 2 . . . . . . . . . . . Unreport Threat 3 | . . . . 2 . . . . 1 . . . . . . . . . . . Hauler Manifests 1 | . . . . 1 . . . . . . . . . . . . . . . . Registered Components 1 | . . . 1 . . . . . . . . . . . . . . . . . Zone Layout 1 | . . . 1 . . . . . . . . . . . . . . . . . Fabricator Hacks 6 | . . . . 2 . . . . . . . . . 2 . . . . 2 . Network Status 2 | . . . . 2 . . . . . . . . . . . . . . . . Load Schematic 2 | . . . . . . . . . . . . . . 1 . . . . 1 . Build 2 | . . . . . . . . . . . . . . 1 . . . . 1 . Repair Station Hacks 9 | . . . 1 2 . . . . . . . . . . . . . . 5 1 Scan Component 5 | . . . . 1 . . . . . . . . . . . . . . 3 1 Repair 3 | . . . . 1 . . . . . . . . . . . . . . 2 . Refit 1 | . . . 1 . . . . . . . . . . . . . . . . . Recycling Unit Hacks 6 | . 1 . 1 1 . . . . 1 . . . . 1 1 . . . . . Retrieve Components 6 | . 1 . 1 1 . . . . 1 . . . . 1 1 . . . . . Scanalyzer 3 | . . . . 1 . . . . 2 . . . . . . . . . . . Insert Component 2 | . . . . 1 . . . . 1 . . . . . . . . . . . Analyze 1 | . . . . . . . . . 1 . . . . . . . . . . . Garrison Access Hacks 1 | . . . . . . . . . . . . . . 1 . . . . . . Seal Access 1 | . . . . . . . . . . . . . . 1 . . . . . . Unauthorized Hacks 41 | . 10 3 4 17 . . . . 2 . . . . 2 . . . . 1 2 Terminals 33 | . 10 3 4 15 . . . . 1 . . . . . . . . . . . Track 1 | . . . . 1 . . . . . . . . . . . . . . . . Botnet 15 | . 4 1 2 7 . . . . 1 . . . . . . . . . . . Operators 2 | . 1 . . 1 . . . . . . . . . . . . . . . . Skim 15 | . 5 2 2 6 . . . . . . . . . . . . . . . . Fabricators 4 | . . . . 2 . . . . . . . . . 1 . . . . 1 . Report 1 | . . . . 1 . . . . . . . . . . . . . . . . Prioritize 2 | . . . . . . . . . . . . . . 1 . . . . 1 . Haulers 1 | . . . . 1 . . . . . . . . . . . . . . . . Repair Stations 3 | . . . . . . . . . 1 . . . . . . . . . . 2 Patch 3 | . . . . . . . . . 1 . . . . . . . . . . 2 Recycling Units 1 | . . . . . . . . . . . . . . 1 . . . . . . Recyclers 1 | . . . . . . . . . . . . . . 1 . . . . . . Scanalyzers . | . . . . . . . . . . . . . . . . . . . . . Garrison Access . | . . . . . . . . . . . . . . . . . . . . . Data Cores Recovered 2 | . . . . . . . . . . . . . . 2 . . . . . . Used . | . . . . . . . . . . . . . . . . . . . . . Hacking Detections 49 | . 7 3 8 16 . . . . 8 . . . . 2 . 1 . . 2 2 Full Trace Events 11 | . 1 1 3 2 . . . . 2 . . . . 1 . . . . 1 . Feedback Events 2 | . . . . 1 . . . . 1 . . . . . . . . . . . Corruption 2 | . . . . 1 . . . . 1 . . . . . . . . . . . Feedback Blocked . | . . . . . . . . . . . . . . . . . . . . . Robot Schematics Acquired 14 | . . . . . . . 7 . . . . 4 . . 3 . . . . . Robots Built . | . . . . . . . . . . . . . . . . . . . . . Authchips . | . . . . . . . . . . . . . . . . . . . . . Time . | . . . . . . . . . . . . . . . . . . . . . Total Robot Build Rating . | . . . . . . . . . . . . . . . . . . . . . Part Schematics Acquired 40 | . . . . . . . 10 . 1 . . 19 . . . . . . 10 . Parts Built 2 | . . . . . . . . . . . . . . 1 . . . . 1 . Authchips . | . . . . . . . . . . . . . . . . . . . . . Time 53 | . . . . . . . . . . . . . . 38 . . . . 15 . Total Part Build Rating 10 | . . . . . . . . . . . . . . 5 . . . . 5 . Parts Repaired 3 | . . . . 1 . . . . . . . . . . . . . . 2 . Time 263 | . . . . 19 . . . . . . . . . . . . . . 244 . Parts Recycled . | . . . . . . . . . . . . . . . . . . . . . Recycled Matter . | . . . . . . . . . . . . . . . . . . . . . Retrieved Matter . | . . . . . . . . . . . . . . . . . . . . . Retrieved Components 26 | . 1 . 10 2 . . . . 2 . . . . 2 9 . . . . . Parts Scanalyzed 2 | . . . . 1 . . . . 1 . . . . . . . . . . . Part Schematics Acquired . | . . . . . . . . . . . . . . . . . . . . . Parts Damaged . | . . . . . . . . . . . . . . . . . . . . . Bothacking | -11 -10 -9 -8 -7 -7 -7 -7 -6 -6 -6 -6 -6 -5 -5 -5 -5 -5 -5 -4 -3 ------------ Run | Yrd Mat Mat Mat Fac Low Low Dat Pro Fac Low Low Zio Pro Fac Ext Cet Arc Hub Fac Res Used RIF Installer . | . . . . . . . . . . . . . . . . . . . . . Robots Hacked . | . . . . . . . . . . . . . . . . . . . . . Non-combat . | . . . . . . . . . . . . . . . . . . . . . Combat . | . . . . . . . . . . . . . . . . . . . . . Robot Hacks Applied . | . . . . . . . . . . . . . . . . . . . . . Relay Couplers Released 9 | . . . . . . . . . 2 . . . . . . . . . 3 4 Machine Destruction 2 | . . . . . . . . . 2 . . . . . . . . . . . Programmers 7 | . . . . . . . . . . . . . . . . . . . 3 4 Fabnet Peak Effective % . | . . . . . . . . . . . . . . . . . . . . . Robots Rewired 27 | . . . . . 2 2 . . 1 . . . 2 1 19 . . . . . Allies Hacked . | . . . . . . . . . . . . . . . . . . . . . Hacks Repelled . | . . . . . . . . . . . . . . . . . . . . . Allies | -11 -10 -9 -8 -7 -7 -7 -7 -6 -6 -6 -6 -6 -5 -5 -5 -5 -5 -5 -4 -3 -------- Run | Yrd Mat Mat Mat Fac Low Low Dat Pro Fac Low Low Zio Pro Fac Ext Cet Arc Hub Fac Res Total Allies 55 | . . . . . 2 2 . . 1 . . 4 2 8 29 7 . . . . Largest Group 20 | . . . . . 2 3 3 3 1 . . 4 5 7 19 20 15 9 . . Highest-Rated Group 1168 | . . . . . 48 83 83 83 32 . . 155 172 408 693 1168 982 628 . . Highest-Rated Ally 159 | . . . . . 32 32 32 32 32 . . 40 40 138 159 159 159 96 . . Zionite Dispatches 3 | . . . . . . . . . . . . . . 3 . . . . . . Heavy 1 | . . . . . . . . . . . . . . 1 . . . . . . Fire 1 | . . . . . . . . . . . . . . 1 . . . . . . Hero 1 | . . . . . . . . . . . . . . 1 . . . . . . Total Orders 5 | . . . . . . . . . . . . . . . . 5 . . . . STAY 4 | . . . . . . . . . . . . . . . . 4 . . . . FOLLOW 1 | . . . . . . . . . . . . . . . . 1 . . . . Ally Attacks 360 | . . . . . . 12 . 7 5 . . . 36 32 160 39 39 30 . . Total Damage 18021 | . . . . . . 234 . 155 195 . . . 1990 5254 6135 1333 1242 1483 . . Kills 124 | . . . . . . 5 . 4 1 . . . 15 32 49 7 3 8 . . Allies Corrupted 2 | . . . . . . . . . 1 . . . . . 1 . . . . . Allies Melted . | . . . . . . . . . . . . . . . . . . . . . Intel | -11 -10 -9 -8 -7 -7 -7 -7 -6 -6 -6 -6 -6 -5 -5 -5 -5 -5 -5 -4 -3 ------- Run | Yrd Mat Mat Mat Fac Low Low Dat Pro Fac Low Low Zio Pro Fac Ext Cet Arc Hub Fac Res Active Infowar (turns) 8833 | 13 411 237 95 1911 1427 388 . 649 2390 . . . . 1312 . . . . . . Optics 3039 | . . . . . . . . 649 2390 . . . . . . . . . . . Sensors 2871 | . . . . 1056 1427 388 . . . . . . . . . . . . . . Terrain 2683 | . . . . . . . . . 1371 . . . . 1312 . . . . . . Structural 522 | . . . . 522 . . . . . . . . . . . . . . . . Seismic 756 | 13 411 237 95 . . . . . . . . . . . . . . . . . T.N.C. 341 | . . . . 341 . . . . . . . . . . . . . . . . Robot Analysis Total 1 | . . . . 1 . . . . . . . . . . . . . . . . Derelict Logs Recovered 9 | . . . . . 2 1 . 2 . 1 . 1 2 . . . . . . . Drone Launches . | . . . . . . . . . . . . . . . . . . . . . Drone Recoveries . | . . . . . . . . . . . . . . . . . . . . . Zionite Intel Received 13 | . . . . . . . . . . . . . . 1 5 . . 2 3 2 Main Access 1 | . . . . . . . . . . . . . . 1 . . . . . . Branch Access 1 | . . . . . . . . . . . . . . . . . . 1 . . Emergency Access 1 | . . . . . . . . . . . . . . . 1 . . . . . Component Stockpiles 1 | . . . . . . . . . . . . . . . . . . . 1 . Prototype Stockpiles 2 | . . . . . . . . . . . . . . . . . . 1 1 . Prototype Schematics 1 | . . . . . . . . . . . . . . . . . . . 1 . Unaware Schematics 1 | . . . . . . . . . . . . . . . 1 . . . . . Unaware Analyses 2 | . . . . . . . . . . . . . . . 1 . . . . 1 Trap Installations 1 | . . . . . . . . . . . . . . . . . . . . 1 Active Terminals 1 | . . . . . . . . . . . . . . . 1 . . . . . Depthwide Sectors/0 1 | . . . . . . . . . . . . . . . 1 . . . . . Exploration | -11 -10 -9 -8 -7 -7 -7 -7 -6 -6 -6 -6 -6 -5 -5 -5 -5 -5 -5 -4 -3 ------------- Run | Yrd Mat Mat Mat Fac Low Low Dat Pro Fac Low Low Zio Pro Fac Ext Cet Arc Hub Fac Res Turns Passed 22983 | 96 772 644 1813 2390 1445 736 115 659 3528 560 567 1442 446 1470 1695 683 503 328 1007 2084 Spaces Moved 11360 | 54 477 261 685 1118 815 398 96 301 1595 349 445 1009 322 784 822 237 202 154 336 900 Core 50 | 6 . . 29 . . . . . . . . . . . . . . . . 15 Treads 881 | . . . . . . . . . . . . . . . . 59 202 154 336 130 Legs 9371 | 48 477 261 641 1118 815 398 96 301 1283 349 445 1009 322 273 603 178 . . . 754 Wheels 1043 | . . . . . . . . . 312 . . . . 511 219 . . . . 1 Hover 15 | . . . 15 . . . . . . . . . . . . . . . . . Flight . | . . . . . . . . . . . . . . . . . . . . . Fastest Speed 50 | 50 120 190 50 116 103 107 115 115 95 114 114 114 118 118 110 125 160 160 160 50 Average Speed 153 | 115 131 190 180 182 165 159 116 189 173 123 114 117 118 157 132 180 160 160 163 133 Slowest Speed 470 | 120 190 190 330 196 186 190 190 190 470 188 114 118 118 330 200 193 160 160 240 260 Overloaded Moves . | . . . . . . . . . . . . . . . . . . . . . Propulsion Burnouts . | . . . . . . . . . . . . . . . . . . . . . Robots Hopped . | . . . . . . . . . . . . . . . . . . . . . Potential Cave-ins 10 | . . . 4 . . . . . 4 . . . . . . . . . . 2 Cave-ins Triggered 1 | . . . . . . . . . 1 . . . . . . . . . . . Exploration Rate (%) 50 | 5 88 39 55 33 61 55 69 55 45 44 59 87 56 22 85 69 83 25 10 25 Regions Visited 20 Branch Regions 12 Pre-discovered Areas 14 | . . . . . 2 . 1 1 . . . 1 . . 9 . . . . . Known Exits Taken 10 | . . . . 1 1 . . 1 1 1 1 1 1 . . . . 1 1 . Unknown Exits Taken 10 | 1 1 1 1 . . 1 1 . . . . . . 1 1 1 1 . . . Scrap Searched 19 | . . . . . 2 2 . 1 . 2 7 2 3 . . . . . . . Spaces Dug 177 | . 7 1 3 22 . 1 . 26 40 . 17 . . 16 9 16 . 4 6 9 Terrain Destroyed 1291 | . 17 15 25 23 26 105 . 103 288 28 30 . 17 55 78 17 27 301 71 65 Melee . | . . . . . . . . . . . . . . . . . . . . . Projectile 333 | . . . 9 10 . 1 . . 88 6 30 . . 33 16 17 27 9 24 63 AOE 955 | . 17 15 16 13 26 104 . 103 200 22 . . 17 22 62 . . 289 47 2 Terrain Rammed . | . . . . . . . . . . . . . . . . . . . . . Walls Destroyed . | . . . . . . . . . . . . . . . . . . . . . Machines Disabled . | . . . . . . . . . . . . . . . . . . . . . Actions | -11 -10 -9 -8 -7 -7 -7 -7 -6 -6 -6 -6 -6 -5 -5 -5 -5 -5 -5 -4 -3 --------- Run | Yrd Mat Mat Mat Fac Low Low Dat Pro Fac Low Low Zio Pro Fac Ext Cet Arc Hub Fac Res Total 14838 | 70 553 334 1020 1316 885 475 100 346 2051 404 484 1268 359 913 1283 450 301 185 657 1384 Wait 1009 | . 19 3 91 31 24 28 . . 67 3 . 239 . 4 99 124 38 . 194 45 Move 11340 | 53 476 260 684 1117 814 397 95 300 1594 348 444 1008 321 783 821 236 201 153 335 900 Hop . | . . . . . . . . . . . . . . . . . . . . . Pick Up 212 | 1 10 7 32 12 1 4 . 3 43 7 4 3 4 15 13 10 5 1 6 31 Fast Attach 181 | 8 2 3 15 9 8 3 1 1 45 1 . 3 . 6 13 14 3 3 9 34 Attach 113 | . . 3 14 7 . 7 1 2 16 4 1 . 1 10 6 1 2 . 5 33 Detach 47 | 1 2 . 8 3 . 4 1 1 3 . . . . 1 1 2 3 1 7 9 Swap 213 | . 7 9 12 32 7 6 1 10 37 3 1 5 6 17 16 2 4 4 9 25 Drop 244 | . 2 7 21 22 12 1 1 3 59 2 3 9 3 10 21 22 5 1 11 29 Fire 1222 | 7 34 42 135 78 13 17 . 24 174 36 31 1 19 62 95 39 40 22 81 272 Melee . | . . . . . . . . . . . . . . . . . . . . . Ram 2 | . . . . . . . . . . . . . . . . . . . . 2 Kick 17 | . 1 . 8 . . . . . 2 . . . . . 2 . . . . 4 Crush . | . . . . . . . . . . . . . . . . . . . . . Escape Stasis 15 | . . . . 5 . . . . 5 . . . . . 5 . . . . . Rewire 223 | . . . . . 6 8 . 2 6 . . . 5 5 191 . . . . . Trap . | . . . . . . . . . . . . . . . . . . . . . Miscellaneous . | . . . . . . . . . . . . . . . . . . . . . Route ------- -11/Scrapyard -10/Materials (discovered 5 exits: *Mat x3 / [*Min] / [*Sub]) -9/Materials (discovered 3 exits: *Mat / [*Min] / [*Sto]) -8/Materials -7/Factory (discovered 6 exits: *Fac x4 / *Low x2) -7/Lower Caves -7/Lower Caves (discovered 2 exits: *Fac / *Dat) -7/Data Miner -6/Proximity Caves -6/Factory (discovered 5 exits: *Fac x3 / *Low x2) -6/Lower Caves -6/Lower Caves -6/Zion -5/Proximity Caves -5/Factory (discovered 7 exits: Fac x4 / *Upp x2 / *Ext) -5/Extension (discovered 2 exits: *Fac / *Cet) -5/Cetus (discovered 2 exits: *Fac / [*Arc]) -5/Archives (discovered 2 exits: *Fac / *Hub) -5/Hub_04(d) -4/Factory -3/Research History --------- Turn | Location | Event 9 | -11/Scrapyard | Discovered new exit (range 15) 97 | -11/Scrapyard | Entered Materials 300 | -10/Materials | Build established: Mutant 404 | -10/Materials | Discovered new exit (range 5) 533 | -10/Materials | Discovered new exit (range 9) 569 | -10/Materials | Discovered new exit (range 10) 685 | -10/Materials | Discovered new exit (range 16) 838 | -10/Materials | Learned Storage trap positions 846 | -10/Materials | Discovered new exit (range 12) 869 | -10/Materials | Entered another Materials area 869 | -9/Materials | Evolved 2 slots: Propulsion x1, Utility x1 1273 | -9/Materials | Discovered new exit (range 15) 1362 | -9/Materials | Discovered new exit (range 8) 1475 | -9/Materials | Discovered new exit (range 16) 1513 | -9/Materials | Entered another Materials area 1513 | -8/Materials | Evolved 2 slots: Power x1, Utility x1 1678 | -8/Materials | Lost 5 parts (1p1n2u1w) 1743 | -8/Materials | Released all parts (4) 1803 | -8/Materials | Lost 6 parts (1p2n2u1w) 2331 | -8/Materials | Build established: Scavenger-Mutant 2490 | -8/Materials | Garrison activated, responded to threat 2551 | -8/Materials | Core integrity fell below 50% 2690 | -8/Materials | Lost 4 parts (2n2u) 3197 | -8/Materials | Discovered new exit (range 16) 3326 | -8/Materials | Entered Factory 3326 | -7/Factory | Evolved 2 slots: Utility x2 3389 | -7/Factory | Identified exit to Lower Caves 3800 | -7/Factory | Build established: Mutant 4669 | -7/Factory | Repaired Particle Charger 5555 | -7/Factory | Identified exit to Factory 5716 | -7/Factory | Entered Lower Caves 5774 | -7/Lower Caves | Build established: Hacker-Mutant 5878 | -7/Lower Caves | Learned Factory garrison access intel 6141 | -7/Lower Caves | Found DCF Scrap (16 items) 6296 | -7/Lower Caves | Entered an active Warlord outpost 6326 | -7/Lower Caves | Learned location of Armory (-3) 6326 | -7/Lower Caves | Learned 8 Factory zone layouts 6441 | -7/Lower Caves | Discovered new exit (range 5) 6447 | -7/Lower Caves | Identified exit to Lower Caves 6564 | -7/Lower Caves | Learned location of Zion (-6) 6682 | -7/Lower Caves | Attracted the attention of an 0b10 outpost 7161 | -7/Lower Caves | Entered another Lower Caves area 7161 | -7/Lower Caves | Accompanied by 2 allies 7283 | -7/Lower Caves | Discovered exit to Factory (range 8) 7475 | -7/Lower Caves | Found Alien Artifact 7475 | -7/Lower Caves | Identified Core Expander 7475 | -7/Lower Caves | Installed Core Expander, added new Propulsion slot 7554 | -7/Lower Caves | Found DCF Scrap (12 items) 7567 | -7/Lower Caves | Attacked by a faux Warlord 7690 | -7/Lower Caves | Learned Factory emergency access door positions 7832 | -7/Lower Caves | Discovered new exit (range 7) 7897 | -7/Lower Caves | Entered Data Miner 7897 | -7/Data Miner | Accompanied by 3 allies 7897 | -7/Data Miner | Discovered new exit (range 6) 7921 | -7/Data Miner | Met Data Miner 7943 | -7/Data Miner | Learned location of Section 7 (-2) 7943 | -7/Data Miner | Acquired the access code to Warlord's prototype stash 7958 | -7/Data Miner | Received God Mode back door access code from Data Miner 7959 | -7/Data Miner | Build established: Mutant 8012 | -7/Data Miner | Entered Proximity Caves 8012 | -6/Proximity Caves | Accompanied by 3 allies 8254 | -6/Proximity Caves | Learned location of 1 exit from Factory 8396 | -6/Proximity Caves | Attracted the attention of an 0b10 checkpoint 8490 | -6/Proximity Caves | Build established: Scavenger-Mutant 8548 | -6/Proximity Caves | Discovered exit to Factory (range 7) 8671 | -6/Proximity Caves | Entered Factory 8671 | -6/Factory | Evolved 2 slots: Propulsion x1, Weapon x1 8672 | -6/Factory | Identified exit to Factory 8675 | -6/Factory | Loaded intel: 4 garrison access locations 8965 | -6/Factory | Build established: Scavenger-Tank 9299 | -6/Factory | System corruption reached 10% 9591 | -6/Factory | Lost 3 parts (1p1n1w) 9594 | -6/Factory | Discovered exit to Factory (range 9) 9829 | -6/Factory | Incoming investigation squad redirected 10046 | -6/Factory | Build established: Scavenger-Skirmisher 10374 | -6/Factory | Crushed by falling debris 10421 | -6/Factory | First assault squad dispatched 10430 | -6/Factory | Destroyed 9 combat bots 10782 | -6/Factory | Cargo convoy interrupted 10848 | -6/Factory | Lost 7 parts (2p2n1u2w) 10964 | -6/Factory | Lost 5 parts (1p2n1u1w) 11092 | -6/Factory | Lost 3 parts (1p2u) 11137 | -6/Factory | Incoming assault squad redirected 11148 | -6/Factory | Lost 7 parts (4n2u1w) 11575 | -6/Factory | Build established: Scavenger-Tank 11659 | -6/Factory | Discovered exit to Factory (range 15) 11841 | -6/Factory | Identified exit to Lower Caves 12199 | -6/Factory | Entered Lower Caves 12243 | -6/Lower Caves | Ambushed by wild Derelicts 12369 | -6/Lower Caves | Attracted the attention of an 0b10 checkpoint 12391 | -6/Lower Caves | Core integrity fell below 50% 12439 | -6/Lower Caves | Lost 3 parts (1p2u) 12471 | -6/Lower Caves | Learned Factory emergency access door positions 12620 | -6/Lower Caves | Discovered new exit (range 7) 12628 | -6/Lower Caves | Identified exit to Lower Caves 12698 | -6/Lower Caves | Build established: Scavenger-Gunner 12759 | -6/Lower Caves | Entered another Lower Caves area 13182 | -6/Lower Caves | Discovered new exit (range 6) 13195 | -6/Lower Caves | Identified exit to Zion 13326 | -6/Lower Caves | Entered Zion 13412 | -6/Zion | System corruption cleaned by Quarantine Array 13447 | -6/Zion | Discovered new exit (range 13) 13460 | -6/Zion | Identified exit to Proximity Caves 13516 | -6/Zion | System corruption cleaned by Quarantine Array 13569 | -6/Zion | Found Prototype Energy Gun 13736 | -6/Zion | Learned 4 Factory zone layouts 13923 | -6/Zion | Given A8's code to call for help 13943 | -6/Zion | Given the Hacking Drone Bay 14040 | -6/Zion | Learned Factory garrison access intel 14264 | -6/Zion | Met Imprinter 14284 | -6/Zion | Imprinted 14287 | -6/Zion | Declared Zion's savior 14768 | -6/Zion | Entered Proximity Caves 14768 | -5/Proximity Caves | Accompanied by 4 allies 14770 | -5/Proximity Caves | Attracted the attention of an 0b10 outpost 14977 | -5/Proximity Caves | Attracted the attention of an 0b10 checkpoint 15169 | -5/Proximity Caves | Discovered exit to Factory (range 10) 15180 | -5/Proximity Caves | Learned location of 1 exit from Factory 15190 | -5/Proximity Caves | Learned Factory stockpile data 15214 | -5/Proximity Caves | Entered Factory 15214 | -5/Factory | Accompanied by 1 ally 15214 | -5/Factory | Evolved 2 slots: Propulsion x1, Utility x1 15215 | -5/Factory | Identified exit to Upper Caves 15219 | -5/Factory | Loaded intel: 4 garrison access locations 15254 | -5/Factory | Discovered new exit (range 13) 15537 | -5/Factory | Build established: Scavenger-Skirmisher 15657 | -5/Factory | Incoming investigation squad redirected 15671 | -5/Factory | Fabricated Lgt. Regenerative Plating? 15760 | -5/Factory | Lost 5 parts (3n1u1w) 15811 | -5/Factory | Lost 6 parts (1p2n1u2w) 15853 | -5/Factory | Discovered exit to Upper Caves (range 11) 16205 | -5/Factory | Zion hero teleported in (99-TNT) 16327 | -5/Factory | Retrieved Zion intel report: Main Access 16327 | -5/Factory | Identified exit to Factory 16328 | -5/Factory | Zion Heavy squad teleported in 16493 | -5/Factory | Zion Fire squad teleported in 16684 | -5/Factory | Entered Extension 16684 | -5/Extension | Accompanied by 6 allies (99-TNT) 16819 | -5/Extension | Spotted B-75 Beast 16822 | -5/Extension | Allies destroyed B-75 Beast 16876 | -5/Extension | Lost 3 allies 16927 | -5/Extension | Murdered 99-TNT 16941 | -5/Extension | Found Corrupted Prototype Launcher 17110 | -5/Extension | Rescued a captive Derelict 17112 | -5/Extension | Rescued a captive Derelict 17183 | -5/Extension | Lost 3 allies 17282 | -5/Extension | Rescued a captive Derelict 17343 | -5/Extension | Retrieved Zion intel report: Unaware Analyses 17446 | -5/Extension | Rescued a captive Derelict 17508 | -5/Extension | Build established: Commander-Mutant 17584 | -5/Extension | First assault squad dispatched 17699 | -5/Extension | Incoming assault squad redirected 17738 | -5/Extension | Lost 3 allies 17745 | -5/Extension | Lost 7 parts (1p3n1u2w) 17879 | -5/Extension | Retrieved Zion intel report: Active Terminals 17881 | -5/Extension | Retrieved Zion intel report: Emergency Access 17890 | -5/Extension | Retrieved Zion intel report: Unaware Schematics 17908 | -5/Extension | Incoming assault squad redirected 17928 | -5/Extension | Rescued a captive Derelict 17929 | -5/Extension | Rescued a captive Derelict 18006 | -5/Extension | Incoming investigation squad redirected 18007 | -5/Extension | Retrieved Zion intel report: Depthwide Sectors/-5 18028 | -5/Extension | Rescued A7 18104 | -5/Extension | Terminal network hard line cut 18174 | -5/Extension | Rescued a captive Derelict 18180 | -5/Extension | Rescued a captive Derelict 18213 | -5/Extension | Incoming assault squad redirected 18230 | -5/Extension | Rescued a captive Derelict 18253 | -5/Extension | Discovered exit to Factory (range 10) 18255 | -5/Extension | Discovered new exit (range 6) 18262 | -5/Extension | System corruption reached 10% 18379 | -5/Extension | Entered Cetus 18379 | -5/Cetus | Accompanied by 17 allies (A7) 18384 | -5/Cetus | Acquired a Cetus Manufacturing Module code from A7 18395 | -5/Cetus | Spotted Cetus Guard 18396 | -5/Cetus | Spotted Cetus Guard 18399 | -5/Cetus | Spotted Cetus Guard 18399 | -5/Cetus | Spotted Cetus Guard 18409 | -5/Cetus | Destroyed Cetus Guard 18411 | -5/Cetus | Allies destroyed Cetus Guard 18419 | -5/Cetus | Allies destroyed Cetus Guard 18425 | -5/Cetus | Allies destroyed Cetus Guard 18446 | -5/Cetus | Lost 3 parts (3n) 18448 | -5/Cetus | Lost 4 allies 18548 | -5/Cetus | Started Cetus Manufacturing Module 18552 | -5/Cetus | Enhanced Grunt warped into view, answering call for help 18553 | -5/Cetus | Enhanced Grunt warped into view, answering call for help 18573 | -5/Cetus | Manufactured an Enhanced Grunt 18580 | -5/Cetus | Escorted A7 to Cetus Mainframe 18598 | -5/Cetus | Manufactured an Enhanced Grunt 18623 | -5/Cetus | Manufactured an Enhanced Grunt 18648 | -5/Cetus | Manufactured an Enhanced Grunt 18673 | -5/Cetus | Manufactured an Enhanced Grunt 18697 | -5/Cetus | Discovered new exit (range 16) 18732 | -5/Cetus | Spotted Cetus Guard 18732 | -5/Cetus | Spotted Cetus Guard 18736 | -5/Cetus | Spotted Cetus Guard 18736 | -5/Cetus | Spotted Cetus Guard 18740 | -5/Cetus | Allies destroyed Cetus Guard 18746 | -5/Cetus | Build established: Commander-Tank 18749 | -5/Cetus | Destroyed Cetus Guard 18753 | -5/Cetus | Allies destroyed Cetus Guard 18755 | -5/Cetus | Destroyed Cetus Guard 18767 | -5/Cetus | Found Prototype Device 18767 | -5/Cetus | Identified Exp. Thermal Shield 18843 | -5/Cetus | Discovered exit to Factory (range 15) 18868 | -5/Cetus | Scared off Revision 17 19062 | -5/Cetus | Entered Archives 19062 | -5/Archives | Accompanied by 15 allies (A7) 19067 | -5/Archives | Received a hacking code to weaken MAIN.C 19124 | -5/Archives | Discovered new exit (range 14) 19139 | -5/Archives | Discovered exit to Factory (range 16) 19565 | -5/Archives | Entered Hub_04(d) 19565 | -5/Hub_04(d) | Accompanied by 9 allies 19676 | -5/Hub_04(d) | Discovered exit to Factory (range 4) 19711 | -5/Hub_04(d) | Retrieved Zion intel report: Branch Access 19721 | -5/Hub_04(d) | Retrieved Zion intel report: Prototype Stockpiles 19748 | -5/Hub_04(d) | Network Hub disabled 19748 | -5/Hub_04(d) | Network Hub disabled 19865 | -5/Hub_04(d) | First assault squad dispatched 19868 | -5/Hub_04(d) | Lost 4 allies 19891 | -5/Hub_04(d) | System corruption reached 30% 19892 | -5/Hub_04(d) | Incoming assault squad redirected 19893 | -5/Hub_04(d) | Entered Factory 19893 | -4/Factory | Evolved 2 slots: Utility x2 19941 | -4/Factory | Build established: Scavenger-Tank 20084 | -4/Factory | Retrieved Zion intel report: Prototype Stockpiles 20257 | -4/Factory | Repaired Coolant Network 20393 | -4/Factory | First assault squad dispatched 20394 | -4/Factory | Repaired Broken Centrium Heavy Treads 20460 | -4/Factory | Fabricated Tactical Coordination Suite (x1) 20560 | -4/Factory | Garrison activated, responded to threat 20657 | -4/Factory | Retrieved Zion intel report: Component Stockpiles 20734 | -4/Factory | Retrieved Zion intel report: Prototype Schematics 20836 | -4/Factory | Discovered new exit (range 14) 20897 | -4/Factory | Identified exit to Research 20900 | -4/Factory | Entered Research 20900 | -3/Research | Evolved 2 slots: Power x1, Utility x1 21150 | -3/Research | First assault squad dispatched 21171 | -3/Research | Incoming assault squad redirected 21359 | -3/Research | Spotted Striker 21360 | -3/Research | Cargo convoy interrupted 21400 | -3/Research | Destroyed Striker 21409 | -3/Research | Lost 3 parts (1u2w) 21465 | -3/Research | Build established: Scavenger-Gunner 21853 | -3/Research | Spotted B-86 Titan 21865 | -3/Research | Destroyed 7 combat bots 21870 | -3/Research | Destroyed B-86 Titan 21963 | -3/Research | Retrieved Zion intel report: Trap Installations 22142 | -3/Research | Destroyed 7 combat bots 22169 | -3/Research | Retrieved Zion intel report: Unaware Analyses 22236 | -3/Research | Terminal network hard line cut 22395 | -3/Research | Build established: Scavenger-Tank 22424 | -3/Research | Incoming assault squad redirected 22474 | -3/Research | Garrison activated, responded to threat 22524 | -3/Research | Incoming assault squad redirected 22654 | -3/Research | Lost 9 parts (1p4n2u2w) 22661 | -3/Research | System corruption reached 10% 22672 | -3/Research | Incoming assault squad redirected 22678 | -3/Research | Destroyed 16 combat bots 22705 | -3/Research | High security lockdown imminent 22728 | -3/Research | Lost 11 parts (2p5n3u1w) 22740 | -3/Research | Core integrity fell below 50% 22785 | -3/Research | High security lockdown engaged 22845 | -3/Research | Destroyed 10 combat bots 22879 | -3/Research | Garrison activated, responded to threat 22975 | -3/Research | Released all parts (14) 22978 | -3/Research | Core integrity fell below 20% 22979 | -3/Research | Spotted Investigator 22984 | -3/Research | Destroyed by G-67 Veteran with Plasma Rifle Last Messages --------------- 22977_ G-67 Veteran unfolds itself. 22977_ B-74 Champion unfolds itself. 22977_ M-36 Artificer unfolds itself. 22978_ C-30 ARC bursts open, deploying its payload. 22978_ G-73 Enforcer unfolds itself. 22978_ L-61 Swordsman unfolds itself. 22978_ G-67 Veteran unfolds itself. 22978_ M-36 Artificer unfolds itself. 22978_ Investigator unfolds itself. 22978_ Investigator: "PRIMARY THREAT IDENTIFIED. CONTAINMENT PROTOCOL APPLICABLE." 22979_ C-30 ARC bursts open, deploying its payload. 22979_ G-73 Enforcer unfolds itself. 22979_ L-61 Swordsman unfolds itself. 22979_ B-74 Champion unfolds itself. 22979_ G-67 Veteran unfolds itself. 22979_ I-47 Archangel unfolds itself. 22981_ Critical hit (Burn: +50). Map ----- +----------------------------------------------------+ | ?????????????????????????????????????????????????? | | ?????????????????????????????????????????????????? | | ?????????????????????????????????????????????????? | | ?????????????????????????????????????????????????? | | ?????????????????????????????????????????????????? | | ?????????????????????????????????????????????????? | | ?????????????????????????????????????????????????? | | ?????????????????????????????????????????????????? | | ?????????????????????????????????????????????????? | | ?????????????????????????????????????????????????? | | ?????????????????????????????????????????????????? | | ?????????????????????????????????????????????????? | | ????????????????????? ??????????????????????????? | | ????????????????????? ?????????????????????????? | | ???????????????????? ??????????????????????????? | | ????????+########### ???????????????????????????? | | ???????? [%%=! ???????????????????????????? | | ????????? !=[ ????????????????????????????? | | ?????????? * ?????????????????????????????? | | ??????????? [ ??????????????????????????????? | | ????????????# % %#???????????????????????????????? | | ????????????#=%% #???????????????????????????????? | | ?????########=g[g###################+###?????????? | | ###### " ibl[m % % % ????????? | | "%gg g!b ????????? | | "%bgggm! l @ ????????? | | ###### %clg% ????????? | | ?????#########b############+######+####??????????? | | ########=*=%=%%%%!!!#????????????????????????????? | | #*[%%=!%%=[!*#????????????????????????????? | | #=!""! =[%==!#????????????????????????????? | | """ #[%""""""%==%#????????????????????????????? | | """ # """""""=!!#????????????????????????????? | | """ # !=!!!!#????????????????????????????? | | # [*=[! #????????????????????????????? | | # """""""!% #????????????????????????????? | | """ # %""""""" ! #????????????????????????????? | | """ # """"""""[ #????????????????????????????? | | """ # #????????????????????????????? | | # #????????????????????????????? | | ##############????????????????????????????? | | #?????????????????????????????????????????? | | #?????????????????????????????????????????? | | #?????????????????????????????????????????? | | #?????????????????????????????????????????? | | ########?????????????????????????????????????????? | | ?????????????????????????????????????????????????? | | ?????????????????????????????????????????????????? | | ?????????????????????????????????????????????????? | | ?????????????????????????????????????????????????? | +----------------------------------------------------+ Best States ------------- Heat Dissipation 174 Coolant Potential 120 Energy Generation 71 Energy Capacity 1485 Matter Stores 300 Matter Capacity 300 Sight Range 20 Robot Scan Range 15 Terrain Scan Range 16 Terrain Scan Density 210 Armor Coverage 750 Resistance: KI 30 Resistance: TH 30 Propulsion Shielding 66 Utility Shielding 66 Weapon Shielding 90 Weapon Cycling 20 Phase Shifting 10 Evasion (%) 70 Targeting Accuracy 8 Target Analysis 8 Recoil Reduction 6 Particle Charging 25 Offensive Hacking 24 Defensive Hacking 24 Item Schematics ----------------- Combat Drone Bay | -7/Data Miner | Free Lgt. Regenerative Plating | -7/Data Miner | Free Biomechanical Wings | -7/Data Miner | Free Gravity Neutralizer | -7/Data Miner | Free Prc. Rocket Launcher | -7/Data Miner | Free Arm. Medium Treads | -7/Data Miner | Free Imp. Transmission Jammer | -7/Data Miner | Free Lance | -7/Data Miner | Free Imp. Trap Scanner | -7/Data Miner | Free Adv. Medium Treads | -7/Data Miner | Free Graphene Brace | -6/Factory | Hacked Imp. Thermal Generator | -6/Zion | Archive Adv. Recoil Stabilizer | -6/Zion | Archive Imp. Corruption Screen | -6/Zion | Archive Adv. Shield Generator | -6/Zion | Archive Hpw. Shock Rifle | -6/Zion | Archive Impulse Thruster | -6/Zion | Archive Adv. Thermal Shield | -6/Zion | Archive Fusion Compressor | -6/Zion | Archive Lrn. Tractor Beam | -6/Zion | Archive Imp. Thermal Shield | -6/Zion | Archive Imp. Cryofiber Web | -6/Zion | Archive Lrn. Proton Cannon | -6/Zion | Archive Adv. Terrain Scanner | -6/Zion | Archive Hvy. Riot Gun | -6/Zion | Free Slug Cannon | -6/Zion | Free Enh. Flamer | -6/Zion | Free Hvy. Beamcaster | -6/Zion | Free Bore Cannon | -6/Zion | Free Tactical Coordination Suite | -6/Zion | Free Cld. Nuclear Pulse Thruster | -4/Factory | Z-intel Adv. EM Disruption Field | -4/Factory | Z-intel Lgt. Antimatter Cannon | -4/Factory | Z-intel Prc. Matter Filter | -4/Factory | Z-intel Adv. Energy Well | -4/Factory | Z-intel Exp. Melee Analysis Suite | -4/Factory | Z-intel Diametric Drive | -4/Factory | Z-intel Exp. Field Recycling Unit | -4/Factory | Z-intel Plasma Lance | -4/Factory | Z-intel Particle Accelerator | -4/Factory | Z-intel Robot Schematics ------------------ Y-54 Guardian | -7/Data Miner | Free B-48 Gladiator | -7/Data Miner | Free L-41 Fighter | -7/Data Miner | Free G-47 Trooper | -7/Data Miner | Free P-60 Hacker | -7/Data Miner | Free H-66 Slayer | -7/Data Miner | Free S-27 Virus | -7/Data Miner | Free A-15 Conveyor | -6/Zion | Archive R-06 Scavenger | -6/Zion | Archive K-01 Serf | -6/Zion | Archive Y-72 Warden | -6/Zion | Archive B-60 Warrior | -5/Extension | Z-intel A-02 Transporter | -5/Extension | Z-intel Y-64 Sentinel | -5/Extension | Z-intel Fabricated ------------ Lgt. Regenerative Plating | x1 | -5/Factory Tactical Coordination Suite | x1 | -4/Factory Repaired ---------- Particle Charger | 12% | -7/Factory Coolant Network | 1% | -4/Factory Centrium Heavy Treads | 44% | -4/Factory | Broken Alien Tech Used ----------------- Core Expander Achievements -------------- None Challenges ------------ None Game ------ Seed AuthchipTransportStick Manual? 0 Play Time 03:09:52 Cumulative 146.6 hours Start 2025.08.23 @ 23:25:08 End 2025.08.24 @ 03:08:54 Sessions 1 Manual Loads 0 Difficulty Rogue Special Mode None Game No. 66 Rogue 66 Adventurer 0 Explorer 0 Win Type - Total 3 Types 1/0/2/0/0/0/0/0/0/0 Lore% 75 Gallery% 64 Achievement% 78 Wizard Run 0 Options --------- Layout 2 ASCII 0 Keyboard 1 Movement Vi Keybinds 0 Fullscreen 1 Font 28/SwanstonBold Map View 50x52 Zoom Use 0% Tactical HUD 1 Map Filters NONE Filters NONE Steam 1 RUN: b143bec1-196b-45c2-b71d-cc84cd31d255